fUST/lending_fUST_20250921
["ID","MTS","AMOUNT","RATE_DAILY","PERIOD"]
[386688943,1758456642723,-500.0,0.00019614,2]
[386688945,1758456642732,-500.0,0.00019614,2]
[386688947,1758456642741,-500.0,0.00019626,2]
[386688949,1758456642750,-173.05032968,0.00019695,2]
[386688952,1758456642759,-1000.0,0.00019721,2]
[386688954,1758456642768,-257.59064119,0.00019726,2]
[386688956,1758456642777,-243.53813109,0.00019726,2]
[386688958,1758456642786,-500.0,0.00019726,2]
[386688960,1758456642795,-500.65471073,0.00019726,2]
[386688962,1758456642804,-151.0,0.00019726,2]
[386688964,1758456642814,-500.0,0.00019726,2]
[386688966,1758456642823,-500.0,0.00019726,2]
[386688968,1758456642832,-213.53820038,0.00019726,2]
[386688970,1758456642842,-151.0,0.00019726,2]
[386688972,1758456642851,-480.0,0.00019726,2]
[386688974,1758456642860,-480.0,0.00019726,2]
[386688976,1758456642869,-480.0,0.00019726,2]
[386688978,1758456642879,-480.0,0.00019726,2]
[386688980,1758456642888,-480.0,0.00019726,2]
[386688982,1758456642898,-245.61693289,0.00019726,2]
[386688984,1758456642907,-480.0,0.00019726,2]
[386688986,1758456642916,-480.0,0.00019726,2]
[386688988,1758456642925,-480.0,0.00019726,2]
[386688990,1758456642935,-500.01,0.00019726,2]
[386688992,1758456642945,-480.0,0.00019726,2]
[386688996,1758456642955,-538.80693152,0.00019726,2]
[386688998,1758456642964,-524.98389916,0.00019726,2]
[386689002,1758456642974,-480.0,0.00019726,2]
[386689004,1758456642983,-480.0,0.00019726,2]
[386689006,1758456642992,-480.0,0.00019726,2]
[386689008,1758456643001,-480.0,0.00019726,2]
[386689010,1758456643010,-480.0,0.00019726,2]
[386689012,1758456643019,-480.0,0.00019726,2]
[386689014,1758456643028,-480.0,0.00019726,2]
[386689016,1758456643038,-480.0,0.00019726,2]
[386689018,1758456643047,-480.0,0.00019726,2]
[386689020,1758456643056,-480.0,0.00019726,2]
[386689022,1758456643065,-480.0,0.00019726,2]
[386689024,1758456643075,-483.10527174,0.00019726,2]
[386689026,1758456643084,-480.0,0.00019726,2]
[386689028,1758456643097,-480.0,0.00019726,2]
[386689030,1758456643106,-480.0,0.00019726,2]
[386689032,1758456643115,-480.0,0.00019726,2]
[386689034,1758456643124,-469.1788057,0.00019726,2]
[386689036,1758456643133,-480.0,0.00019726,2]
[386689038,1758456643143,-480.0,0.00019726,2]
[386689040,1758456643152,-480.0,0.00019726,2]
[386689042,1758456643162,-480.0,0.00019726,2]
[386689044,1758456643171,-480.0,0.00019726,2]
[386689046,1758456643181,-480.0,0.00019726,2]
[386689048,1758456643190,-480.0,0.00019726,2]
[386689050,1758456643199,-480.0,0.00019726,2]
[386689052,1758456643208,-480.0,0.00019726,2]
[386689054,1758456643217,-480.0,0.00019726,2]
[386689056,1758456643227,-480.0,0.00019726,2]
[386689058,1758456643237,-480.0,0.00019726,2]
[386689060,1758456643247,-480.0,0.00019726,2]
[386689062,1758456643256,-513.56,0.00019726,2]
[386689064,1758456643266,-480.0,0.00019726,2]
[386689066,1758456643275,-480.0,0.00019726,2]
[386689068,1758456643284,-480.0,0.00019726,2]
[386689070,1758456643293,-480.0,0.00019726,2]
[386689072,1758456643303,-480.0,0.00019726,2]
[386689074,1758456643312,-487.12475197,0.00019726,2]
[386689076,1758456643321,-480.0,0.00019726,2]
[386689078,1758456643331,-974.51,0.00019726,2]
[386689080,1758456643340,-480.0,0.00019726,2]
[386689082,1758456643349,-480.0,0.00019726,2]
[386689084,1758456643359,-480.0,0.00019726,2]
[386689086,1758456643368,-480.0,0.00019726,2]
[386689088,1758456643378,-480.0,0.00019726,2]
[386689090,1758456643387,-480.0,0.00019726,2]
[386689092,1758456643396,-480.0,0.00019726,2]
[386689094,1758456643405,-495.33335367,0.00019726,2]
[386689096,1758456643415,-480.0,0.00019726,2]
[386689098,1758456643424,-480.0,0.00019726,2]
[386689100,1758456643433,-480.0,0.00019726,2]
[386689102,1758456643442,-480.0,0.00019726,2]
[386689104,1758456643451,-480.0,0.00019726,2]
[386689106,1758456643461,-480.0,0.00019726,2]
[386689108,1758456643470,-440.02434918,0.00019726,2]
[386689110,1758456643480,-480.0,0.00019726,2]
[386689112,1758456643490,-480.0,0.00019726,2]
[386689114,1758456643499,-527.95415741,0.00019726,2]
[386689116,1758456643509,-480.0,0.00019726,2]
[386689118,1758456643518,-480.0,0.00019726,2]
[386689120,1758456643527,-480.0,0.00019726,2]
[386689122,1758456643536,-480.0,0.00019726,2]
[386689124,1758456643546,-460.558345,0.00019726,2]
[386689126,1758456643555,-480.0,0.00019726,2]
[386689128,1758456643565,-480.0,0.00019726,2]
[386689130,1758456643574,-485.52529247,0.00019726,2]
[386689132,1758456643583,-480.0,0.00019726,2]
[386689134,1758456643594,-480.0,0.00019726,2]
[386689136,1758456643603,-480.0,0.00019726,2]
[386689138,1758456643612,-480.0,0.00019726,2]
[386689140,1758456643621,-423.06445261,0.00019726,2]
[386689142,1758456643631,-480.0,0.00019726,2]
[386689144,1758456643640,-480.0,0.00019726,2]
[386689146,1758456643650,-480.0,0.00019726,2]
[386689148,1758456643659,-480.0,0.00019726,2]
[386689150,1758456643668,-480.0,0.00019726,2]
[386689151,1758456643678,-480.0,0.00019726,2]
[386689154,1758456643687,-480.0,0.00019726,2]
[386689155,1758456643696,-526.27911202,0.00019726,2]
[386689158,1758456643706,-480.0,0.00019726,2]
[386689160,1758456643715,-480.0,0.00019726,2]
[386689162,1758456643724,-480.0,0.00019726,2]
[386689164,1758456643733,-178.34176478,0.00019726,2]
[386689165,1758456643742,-480.0,0.00019726,2]
[386689168,1758456643752,-489.19193207,0.00019726,2]
[386689170,1758456643761,-480.0,0.00019726,2]
[386689172,1758456643770,-480.0,0.00019726,2]
[386689174,1758456643779,-480.0,0.00019726,2]
[386689176,1758456643788,-666.54,0.00019726,2]
[386689178,1758456643798,-617.06571031,0.00019726,2]
[386689180,1758456643807,-480.0,0.00019726,2]
[386689181,1758456643817,-480.0,0.00019726,2]
[386689183,1758456643826,-480.0,0.00019726,2]
[386689185,1758456643835,-480.0,0.00019726,2]
[386689187,1758456643845,-480.0,0.00019726,2]
[386689189,1758456643854,-480.0,0.00019726,2]
[386689191,1758456643864,-908.39,0.00019726,2]
[386689193,1758456643873,-960.83,0.00019726,2]
[386689195,1758456643883,-480.0,0.00019726,2]
[386689197,1758456643892,-468.20860658,0.00019726,2]
[386689199,1758456643901,-480.0,0.00019726,2]
[386689201,1758456643910,-480.0,0.00019726,2]
[386689204,1758456643920,-480.0,0.00019726,2]
[386689205,1758456643929,-480.0,0.00019726,2]
[386689208,1758456643938,-480.0,0.00019726,2]
[386689210,1758456643948,-480.0,0.00019726,2]
[386689212,1758456643957,-480.0,0.00019726,2]
[386689213,1758456643966,-480.0,0.00019726,2]
[386689216,1758456643975,-480.0,0.00019726,2]
[386689217,1758456643984,-2412.97,0.00019726,2]
[386689219,1758456643993,-480.0,0.00019726,2]
[386689221,1758456644002,-480.0,0.00019726,2]
[386689223,1758456644011,-1360.41,0.00019726,2]
[386689225,1758456644020,-480.0,0.00019726,2]
[386689227,1758456644029,-259.37439466,0.00019726,2]
[386689229,1758456644038,-480.0,0.00019726,2]
[386689231,1758456644048,-480.0,0.00019726,2]
[386689233,1758456644057,-480.0,0.00019726,2]
[386689235,1758456644068,-480.0,0.00019726,2]
[386689237,1758456644077,-387.30731759,0.00019726,2]
[386689239,1758456644086,-749.69,0.00019726,2]
[386689241,1758456644100,-480.0,0.00019726,2]
[386689243,1758456644109,-167.75548567,0.00019726,2]
[386689245,1758456644118,-480.0,0.00019726,2]
[386689247,1758456644127,-480.0,0.00019726,2]
[386689249,1758456644138,-480.0,0.00019726,2]
[386689251,1758456644147,-480.0,0.00019726,2]
[386689253,1758456644156,-755.36,0.00019726,2]
[386689255,1758456644167,-480.0,0.00019726,2]
[386689257,1758456644176,-480.0,0.00019726,2]
[386689259,1758456644185,-345.54669654,0.00019726,2]
[386689261,1758456644194,-480.0,0.00019726,2]
[386689263,1758456644204,-1200.39,0.00019726,2]
[386689265,1758456644213,-480.0,0.00019726,2]
[386689267,1758456644223,-480.0,0.00019726,2]
[386689270,1758456644232,-1327.03,0.00019726,2]
[386689272,1758456644242,-196.4737762,0.00019726,2]
[386689273,1758456644251,-480.0,0.00019726,2]
[386689276,1758456644261,-480.0,0.00019726,2]
[386689278,1758456644270,-480.0,0.00019726,2]
[386689280,1758456644279,-480.0,0.00019726,2]
[386689282,1758456644289,-480.0,0.00019726,2]
[386689284,1758456644298,-480.0,0.00019726,2]
[386689285,1758456644308,-480.0,0.00019726,2]
[386689287,1758456644317,-480.0,0.00019726,2]
[386689289,1758456644326,-480.0,0.00019726,2]
[386689291,1758456644337,-480.0,0.00019726,2]
[386689294,1758456644347,-496.49513914,0.00019726,2]
[386689295,1758456644357,-480.0,0.00019726,2]
[386689298,1758456644366,-480.0,0.00019726,2]
[386689299,1758456644376,-549.13,0.00019726,2]
[386689301,1758456644385,-8001.33,0.00019726,2]
[386689302,1758456644394,-480.0,0.00019726,2]
[386689303,1758456644403,-480.0,0.00019726,2]
[386689304,1758456644412,-480.0,0.00019726,2]
[386689305,1758456644421,-714.25,0.00019726,2]
[386689306,1758456644430,-480.0,0.00019726,2]
[386689307,1758456644440,-228.45954699,0.00019726,2]
[386689308,1758456644450,-480.0,0.00019726,2]
[386689309,1758456644459,-480.0,0.00019726,2]
[386689310,1758456644468,-480.0,0.00019726,2]
[386689311,1758456644477,-480.0,0.00019726,2]
[386689312,1758456644486,-486.10266892,0.00019726,2]
[386689313,1758456644495,-480.0,0.00019726,2]
[386689314,1758456644504,-517.79,0.00019726,2]
[386689315,1758456644513,-1178.87,0.00019726,2]
[386689316,1758456644522,-480.0,0.00019726,2]
[386689317,1758456644532,-480.0,0.00019726,2]
[386689318,1758456644541,-480.0,0.00019726,2]
[386689319,1758456644550,-941.28,0.00019726,2]
[386689320,1758456644560,-516.5,0.00019726,2]
[386689321,1758456644569,-480.0,0.00019726,2]
[386689322,1758456644578,-151.0,0.00019726,2]
[386689323,1758456644587,-151.0,0.00019726,2]
[386689324,1758456644596,-480.0,0.00019726,2]
[386689325,1758456644605,-480.0,0.00019726,2]
[386689326,1758456644614,-222.118478,0.00019726,2]
[386689327,1758456644623,-151.0,0.00019726,2]
[386689328,1758456644633,-480.0,0.00019726,2]
[386689329,1758456644642,-222.118478,0.00019726,2]
[386689330,1758456644651,-610.37,0.00019726,2]
[386689331,1758456644660,-157.141319,0.00019726,2]
[386689332,1758456644670,-222.118478,0.00019726,2]
[386689333,1758456644679,-480.0,0.00019726,2]
[386689335,1758456644689,-222.118478,0.00019726,2]
[386689337,1758456644699,-500.0,0.00019726,2]
[386689339,1758456644708,-536.164,0.00019748,2]
[386689341,1758456644717,-259.70724551,0.00019808,3]
[386689343,1758456644726,-409.39,0.000199,2]
[386689345,1758456644737,-173.05032968,0.000199,2]
[386689347,1758456644747,-11553.99926775,0.000199,2]
[386689349,1758456644756,-152.251034,0.000199,2]
[386689351,1758456644765,-151.0,0.000199,2]
[386689353,1758456644774,-151.0,0.000199,2]
[386689355,1758456644783,-151.0,0.000199,2]
[386689357,1758456644793,-151.0,0.000199,2]
[386689359,1758456644802,-151.0,0.000199,2]
[386689361,1758456644812,-151.0,0.000199,2]
[386689363,1758456644822,-151.0,0.000199,2]
[386689364,1758456644831,-151.0,0.000199,2]
[386689366,1758456644842,-151.0,0.000199,2]
[386689368,1758456644852,-500.0,0.0002,2]
[386689369,1758456644861,-167.04559765,0.0002,2]
[386689370,1758456644871,-500.0,0.0002,2]
[386689371,1758456644880,-500.0,0.0002,2]
[386689372,1758456644889,-151.0,0.0002,2]
[386689373,1758456644901,-480.0,0.0002,2]
[386689374,1758456644910,-469.26261065,0.0002,2]
[386689375,1758456644919,-480.0,0.0002,2]
[386689376,1758456644930,-480.0,0.0002,2]
[386689377,1758456644939,-480.0,0.0002,2]
[386689378,1758456644949,-480.0,0.0002,2]
[386689379,1758456644959,-463.23459873,0.0002,2]
[386689380,1758456644969,-480.0,0.0002,2]
[386689381,1758456644979,-340.27229525,0.0002,2]
[386689382,1758456644989,-323.76914169,0.0002,2]
[386689383,1758456644998,-480.0,0.0002,2]
[386689384,1758456645008,-486.88036049,0.0002,2]
[386689385,1758456645018,-480.0,0.0002,2]
[386689386,1758456645027,-476.60514724,0.0002,2]
[386689387,1758456645038,-480.0,0.0002,2]
[386689388,1758456645048,-480.0,0.0002,2]
[386689389,1758456645057,-480.0,0.0002,2]
[386689390,1758456645066,-480.0,0.0002,2]
[386689391,1758456645075,-480.0,0.0002,2]
[386689392,1758456645086,-480.0,0.0002,2]
[386689393,1758456645097,-480.0,0.0002,2]
[386689394,1758456645107,-480.0,0.0002,2]
[386689395,1758456645116,-480.0,0.0002,2]
[386689396,1758456645126,-530.48253614,0.0002,2]
[386689397,1758456645135,-480.0,0.0002,2]
[386689398,1758456645145,-483.90150031,0.0002,2]
[386689399,1758456645155,-500.0,0.0002,2]
[386689400,1758456645164,-480.0,0.0002,2]
[386689401,1758456645173,-154.76423381,0.0002,2]
[386689403,1758456645183,-480.0,0.0002,2]
[386689405,1758456645192,-480.0,0.0002,2]
[386689407,1758456645201,-480.0,0.0002,2]
[386689409,1758456645211,-480.0,0.0002,2]
[386689411,1758456645220,-974.51,0.0002,2]
[386689413,1758456645230,-480.0,0.0002,2]
[386689415,1758456645239,-480.0,0.0002,2]
[386689417,1758456645248,-480.0,0.0002,2]
[386689419,1758456645257,-480.0,0.0002,2]
[386689421,1758456645267,-480.0,0.0002,2]
[386689423,1758456645275,-480.0,0.0002,2]
[386689425,1758456645285,-480.0,0.0002,2]
[386689427,1758456645295,-480.0,0.0002,2]
[386689429,1758456645304,-512.27405801,0.0002,2]
[386689430,1758456645315,-480.0,0.0002,2]
[386689431,1758456645325,-480.0,0.0002,2]
[386689432,1758456645335,-151.88291721,0.0002,2]
[386689434,1758456645344,-480.0,0.0002,2]
[386689436,1758456645353,-480.0,0.0002,2]
[386689438,1758456645362,-530.73459068,0.0002,2]
[386689440,1758456645372,-446.63242275,0.0002,2]
[386689442,1758456645382,-480.0,0.0002,2]
[386689445,1758456645391,-480.0,0.0002,2]
[386689447,1758456645401,-480.0,0.0002,2]
[386689449,1758456645411,-480.0,0.0002,2]
[386689451,1758456645421,-521.52219349,0.0002,2]
[386689453,1758456645431,-480.0,0.0002,2]
[386689455,1758456645440,-480.0,0.0002,2]
[386689457,1758456645450,-480.0,0.0002,2]
[386689459,1758456645460,-480.0,0.0002,2]
[386689461,1758456645469,-480.0,0.0002,2]
[386689463,1758456645478,-151.0,0.0002,2]
[386689465,1758456645488,-480.0,0.0002,2]
[386689466,1758456645497,-480.0,0.0002,2]
[386689468,1758456645506,-503.38225145,0.0002,2]
[386689471,1758456645517,-480.0,0.0002,2]
[386689472,1758456645526,-480.0,0.0002,2]
[386689474,1758456645536,-480.0,0.0002,2]
[386689477,1758456645546,-151.0,0.0002,2]
[386689479,1758456645556,-166.11648183,0.0002,2]
[386689481,1758456645566,-480.0,0.0002,2]
[386689483,1758456645576,-666.54,0.0002,2]
[386689485,1758456645586,-480.0,0.0002,2]
[386689487,1758456645596,-151.0,0.0002,2]
[386689489,1758456645605,-151.0,0.0002,2]
[386689491,1758456645615,-480.0,0.0002,2]
[386689493,1758456645624,-151.861881,0.0002,2]
[386689494,1758456645634,-480.0,0.0002,2]
[386689495,1758456645643,-151.0,0.0002,2]
[386689496,1758456645653,-480.0,0.0002,2]
[386689498,1758456645662,-480.0,0.0002,2]
[386689499,1758456645671,-908.39,0.0002,2]
[386689502,1758456645681,-960.83,0.0002,2]
[386689504,1758456645693,-480.0,0.0002,2]
[386689506,1758456645702,-151.0,0.0002,2]
[386689508,1758456645712,-480.0,0.0002,2]
[386689510,1758456645722,-579.6436864,0.0002,2]
[386689512,1758456645731,-480.0,0.0002,2]
[386689516,1758456645859,-480.0,0.0002,2]
[386689517,1758456645869,-480.0,0.0002,2]
[386689518,1758456645879,-480.0,0.0002,2]
[386689519,1758456645888,-480.0,0.0002,2]
[386689520,1758456645898,-480.0,0.0002,2]
[386689521,1758456645907,-2412.97,0.0002,2]
[386689523,1758456645918,-223.920258,0.0002,2]
[386689525,1758456645928,-480.0,0.0002,2]
[386689527,1758456645939,-480.0,0.0002,2]
[386689529,1758456645949,-1360.41,0.0002,2]
[386689531,1758456645958,-480.0,0.0002,2]
[386689533,1758456645967,-480.0,0.0002,2]
[386689534,1758456645976,-151.0,0.0002,2]
[386689537,1758456645986,-151.0,0.0002,2]
[386689539,1758456645996,-160.269106,0.0002,2]
[386689541,1758456646005,-480.0,0.0002,2]
[386689543,1758456646015,-480.0,0.0002,2]
[386689544,1758456646024,-151.0,0.0002,2]
[386689547,1758456646035,-151.0,0.0002,2]
[386689549,1758456646045,-749.69,0.0002,2]
[386689551,1758456646054,-480.0,0.0002,2]
[386689552,1758456646063,-480.0,0.0002,2]
[386689554,1758456646072,-480.0,0.0002,2]
[386689557,1758456646082,-480.0,0.0002,2]
[386689558,1758456646095,-151.330335,0.0002,2]
[386689560,1758456646104,-480.0,0.0002,2]
[386689562,1758456646113,-480.0,0.0002,2]
[386689564,1758456646122,-755.36,0.0002,2]
[386689566,1758456646132,-480.0,0.0002,2]
[386689568,1758456646144,-480.0,0.0002,2]
[386689570,1758456646154,-151.0,0.0002,2]
[386689572,1758456646164,-1200.39,0.0002,2]
[386689574,1758456646174,-522.45435756,0.0002,2]
[386689576,1758456646183,-480.0,0.0002,2]
[386689578,1758456646192,-1327.03,0.0002,2]
[386689580,1758456646201,-152.733006,0.0002,2]
[386689582,1758456646211,-303.726152,0.0002,2]
[386689584,1758456646220,-303.726152,0.0002,2]
[386689586,1758456646229,-151.0,0.0002,2]
[386689588,1758456646239,-303.726152,0.0002,2]
[386689590,1758456646249,-303.726152,0.0002,2]
[386689593,1758456646259,-480.0,0.0002,2]
[386689595,1758456646269,-480.0,0.0002,2]
[386689596,1758456646279,-480.0,0.0002,2]
[386689598,1758456646288,-480.0,0.0002,2]
[386689601,1758456646298,-480.0,0.0002,2]
[386689603,1758456646307,-480.0,0.0002,2]
[386689605,1758456646317,-480.0,0.0002,2]
[386689607,1758456646327,-480.0,0.0002,2]
[386689609,1758456646336,-480.0,0.0002,2]
[386689611,1758456646345,-480.0,0.0002,2]
[386689613,1758456646355,-480.0,0.0002,2]
[386689615,1758456646365,-549.13,0.0002,2]
[386689617,1758456646375,-152.10931,0.0002,2]
[386689619,1758456646384,-8001.33,0.0002,2]
[386689621,1758456646393,-152.391013,0.0002,2]
[386689623,1758456646403,-480.0,0.0002,2]
[386689625,1758456646412,-406.00826311,0.0002,2]
[386689627,1758456646422,-480.0,0.0002,2]
[386689628,1758456646431,-714.25,0.0002,2]
[386689630,1758456646440,-480.0,0.0002,2]
[386689632,1758456646449,-352.60021733,0.0002,2]
[386689634,1758456646459,-480.0,0.0002,2]
[386689636,1758456646468,-443.75269614,0.0002,2]
[386689638,1758456646478,-480.0,0.0002,2]
[386689640,1758456646487,-517.79,0.0002,2]
[386689642,1758456646497,-1178.87,0.0002,2]
[386689644,1758456646507,-480.0,0.0002,2]
[386689646,1758456646517,-480.0,0.0002,2]
[386689648,1758456646526,-4000.0,0.0002,4]
[386689651,1758456646537,-941.28,0.0002,2]
[386689653,1758456646546,-516.5,0.0002,2]
[386689654,1758456646555,-480.0,0.0002,2]
[386689656,1758456646565,-480.0,0.0002,2]
[386689658,1758456646574,-480.0,0.0002,2]
[386689660,1758456646584,-480.0,0.0002,2]
[386689662,1758456646594,-610.37,0.0002,2]
[386689664,1758456646604,-480.0,0.0002,2]
[386689666,1758456646614,-503.03468971,0.00020021,2]
[386689668,1758456646623,-500.0,0.00020021,2]
[386689670,1758456646633,-500.0,0.00020021,2]
[386689673,1758456646642,-279.973145,0.00020021,2]
[386689674,1758456646652,-1000.0,0.00020021,2]
[386689677,1758456646662,-323.43081564,0.00020021,2]
[386689679,1758456646671,-1000.0,0.00020021,2]
[386689680,1758456646681,-1000.0,0.00020021,2]
[386689682,1758456646690,-1000.0,0.00020021,2]
[386689684,1758456646699,-1011.0021489,0.00020021,2]
[386689686,1758456646709,-500.0,0.00020021,2]
[386689689,1758456646719,-1000.0,0.00020021,2]
[386689691,1758456646729,-179.78425889,0.00020036,2]
[386689693,1758456646738,-151.07159166,0.00020053,2]
[386689695,1758456646749,-1000.0,0.00020053,2]
[386689697,1758456646758,-19292.2273969,0.00020053,2]
[386689699,1758456646767,-151.0,0.00020053,2]
[386689701,1758456646778,-1000.0,0.00020053,2]
[386689703,1758456646788,-168.3888056,0.00020053,2]
[386689705,1758456646797,-151.0,0.00020053,2]
[386689707,1758456646806,-1006.43456884,0.00020053,2]
[386689709,1758456646815,-151.0,0.00020053,2]
[386689711,1758456646824,-151.0,0.00020053,2]
[386689713,1758456646833,-151.0,0.00020053,2]
[386689715,1758456646842,-151.0,0.00020053,2]
[386689717,1758456646851,-151.0,0.00020053,2]
[386689718,1758456646861,-151.0,0.00020053,2]
[386689721,1758456646870,-1038.05082755,0.00020053,2]
[386689723,1758456646879,-500.0,0.00020053,2]
[386689725,1758456646889,-500.0,0.00020053,2]
[386689727,1758456646898,-500.0,0.00020053,2]
[386689729,1758456646906,-515.6138429,0.00020053,2]
[386689731,1758456646916,-500.0,0.00020053,2]
[386689733,1758456646925,-500.0,0.00020053,2]
[386689734,1758456646934,-500.0,0.00020053,2]
[386689736,1758456646943,-500.0,0.00020053,2]
[386689738,1758456646952,-500.0,0.00020053,2]
[386689740,1758456646961,-500.0,0.00020053,2]
[386689742,1758456646970,-500.0,0.00020053,2]
[386689744,1758456646979,-500.0,0.00020053,2]
[386689746,1758456646989,-285.51436141,0.00020053,2]
[386689748,1758456646998,-265.2259484,0.0002012,2]
[386689750,1758456647007,-1000.0,0.00020145,2]
[386689752,1758456647017,-507.47765638,0.00020145,2]
[386689754,1758456647026,-308.0146575,0.00020145,2]
[386689756,1758456647036,-1000.0,0.00020162,2]
[386689758,1758456647045,-379.56872956,0.00020162,2]
[386689760,1758456647055,-151.0,0.00020162,2]
[386689762,1758456647064,-151.0,0.00020162,2]
[386689764,1758456647074,-154.51728,0.00020162,2]
[386689766,1758456647084,-153.082331,0.00020162,2]
[386689768,1758456647097,-1055.33413184,0.000202,2]
[386689770,1758456647107,-160.0,0.0002025,2]
[386689772,1758456647116,-233.52200025,0.00020269,2]
[386689774,1758456647125,-160.0,0.00020269,2]
[386689777,1758456647135,-417.15472785,0.00020269,2]
[386689778,1758456647147,-160.0,0.00020269,2]
[386689780,1758456647159,-848.42763433,0.00020269,2]
[386689783,1758456647168,-160.0,0.00020269,2]
[386689785,1758456647179,-160.0,0.00020269,2]
[386689787,1758456647187,-160.0,0.00020269,2]
[386689789,1758456647197,-160.0,0.00020269,2]
[386689791,1758456647206,-160.0,0.00020269,2]
[386689793,1758456647215,-480.0,0.00020273,2]
[386689795,1758456647224,-480.0,0.00020273,2]
[386689797,1758456647233,-480.0,0.00020273,2]
[386689799,1758456647243,-519.82150617,0.00020273,2]
[386689801,1758456647253,-480.0,0.00020273,2]
[386689803,1758456647263,-480.0,0.00020273,2]
[386689805,1758456647273,-480.0,0.00020273,2]
[386689807,1758456647282,-480.0,0.00020273,2]
[386689809,1758456647291,-480.0,0.00020273,2]
[386689811,1758456647301,-480.0,0.00020273,2]
[386689813,1758456647311,-480.0,0.00020273,2]
[386689815,1758456647320,-480.0,0.00020273,2]
[386689817,1758456647329,-480.0,0.00020273,2]
[386689819,1758456647338,-480.0,0.00020273,2]
[386689821,1758456647348,-492.7461765,0.00020273,2]
[386689823,1758456647359,-153.357488,0.00020273,2]
[386689825,1758456647368,-492.67807323,0.00020273,2]
[386689827,1758456647377,-974.51,0.00020273,2]
[386689829,1758456647386,-480.0,0.00020273,2]
[386689831,1758456647395,-180.52289267,0.00020273,2]
[386689833,1758456647405,-153.330072,0.00020273,2]
[386689835,1758456647414,-153.990148,0.00020273,2]
[386689837,1758456647423,-566.64618465,0.00020273,2]
[386689839,1758456647432,-151.0,0.00020273,2]
[386689841,1758456647441,-151.0,0.00020273,2]
[386689843,1758456647450,-480.0,0.00020273,2]
[386689845,1758456647459,-151.0,0.00020273,2]
[386689847,1758456647468,-480.0,0.00020273,2]
[386689849,1758456647478,-480.0,0.00020273,2]
[386689851,1758456647487,-480.0,0.00020273,2]
[386689853,1758456647495,-152.223131,0.00020273,2]
[386689855,1758456647505,-152.998992,0.00020273,2]
[386689857,1758456647514,-151.575761,0.00020273,2]
[386689859,1758456647523,-480.0,0.00020273,2]
[386689861,1758456647532,-480.0,0.00020273,2]
[386689863,1758456647541,-480.0,0.00020273,2]
[386689865,1758456647552,-480.0,0.00020273,2]
[386689867,1758456647562,-151.0,0.00020273,2]
[386689869,1758456647571,-476.30493954,0.00020273,2]
[386689871,1758456647582,-151.0,0.00020273,2]